fUST/lending_fUST_20250817
["ID","MTS","AMOUNT","RATE_DAILY","PERIOD"]
[379665657,1755364262349,-460.0,0.00022143,2]
[379665659,1755364262358,-480.0,0.00022143,2]
[379665661,1755364262368,-480.0,0.00022143,2]
[379665663,1755364262377,-1101.84,0.00022143,2]
[379665665,1755364262386,-480.0,0.00022143,2]
[379665667,1755364262395,-480.0,0.00022143,2]
[379665669,1755364262405,-701.52,0.00022143,2]
[379665671,1755364262415,-448.27380012,0.00022143,2]
[379665673,1755364262425,-871.13,0.00022143,2]
[379665675,1755364262434,-480.0,0.00022143,2]
[379665677,1755364262444,-2093.92,0.00022143,2]
[379665679,1755364262453,-992.75,0.00022143,2]
[379665681,1755364262463,-480.0,0.00022143,2]
[379665683,1755364262473,-480.0,0.00022143,2]
[379665685,1755364262482,-480.0,0.00022143,2]
[379665687,1755364262492,-480.0,0.00022143,2]
[379665689,1755364262501,-480.0,0.00022143,2]
[379665691,1755364262510,-500.0,0.00022173,2]
[379665693,1755364262519,-500.0,0.00022173,2]
[379665695,1755364262529,-500.0,0.00022173,2]
[379665697,1755364262539,-500.58545385,0.00022173,2]
[379665699,1755364262547,-500.63349668,0.00022173,2]
[379665701,1755364262557,-500.0,0.00022173,2]
[379665703,1755364262566,-500.0,0.00022173,2]
[379665705,1755364262575,-500.0,0.00022173,2]
[379665707,1755364262585,-500.0,0.00022173,2]
[379665709,1755364262594,-500.0,0.00022173,2]
[379665712,1755364262606,-500.0,0.00022173,2]
[379665713,1755364262616,-500.0,0.00022173,2]
[379665716,1755364262626,-500.0,0.00022173,2]
[379665718,1755364262636,-500.0,0.00022173,2]
[379665719,1755364262646,-506.77499837,0.00022173,2]
[379665722,1755364262658,-500.0,0.00022173,2]
[379665724,1755364262667,-500.0,0.00022173,2]
[379665726,1755364262677,-500.0,0.00022173,2]
[379665728,1755364262686,-500.0,0.00022173,2]
[379665730,1755364262695,-500.0,0.00022173,2]
[379665732,1755364262704,-500.0,0.00022173,2]
[379665734,1755364262714,-500.0,0.00022173,2]
[379665736,1755364262723,-500.0,0.00022173,2]
[379665738,1755364262734,-500.0,0.00022173,2]
[379665740,1755364262743,-500.0,0.00022173,2]
[379665742,1755364262752,-500.0,0.00022173,2]
[379665744,1755364262760,-500.0,0.00022173,2]
[379665746,1755364262770,-540.77709212,0.00022173,2]
[379665748,1755364262779,-150.0,0.00022173,2]
[379665750,1755364262788,-1000.0,0.00022173,2]
[379665752,1755364262797,-152.916725,0.00022173,7]
[379665753,1755364262808,-152.916725,0.00022173,7]
[379665755,1755364262818,-153.549071,0.00022173,7]
[379665757,1755364262828,-151.0,0.00022173,7]
[379665759,1755364262837,-239.039165,0.00022173,7]
[379665762,1755364262848,-151.0,0.00022173,7]
[379665764,1755364262857,-151.0,0.00022173,7]
[379665766,1755364262867,-151.0,0.00022173,7]
[379665767,1755364262877,-151.0,0.00022173,7]
[379665769,1755364262887,-168.562499,0.00022173,7]
[379665771,1755364262896,-168.562499,0.00022173,7]
[379665773,1755364262908,-153.198574,0.00022173,7]
[379665776,1755364262918,-151.0,0.00022173,7]
[379665778,1755364262928,-1454.408101,0.00022173,7]
[379665780,1755364262938,-1454.408101,0.00022173,7]
[379665782,1755364262949,-151.0,0.00022173,7]
[379665784,1755364262959,-151.0,0.00022173,7]
[379665786,1755364262968,-225.615014,0.00022173,7]
[379665788,1755364262978,-225.615014,0.00022173,7]
[379665790,1755364262987,-480.0,0.00022177,2]
[379665792,1755364262996,-480.0,0.00022177,2]
[379665794,1755364263006,-480.0,0.00022177,2]
[379665796,1755364263015,-636.03,0.00022177,2]
[379665798,1755364263025,-480.0,0.00022177,2]
[379665800,1755364263035,-746.32,0.00022177,2]
[379665802,1755364263046,-480.0,0.00022177,2]
[379665804,1755364263055,-480.0,0.00022177,2]
[379665806,1755364263064,-480.0,0.00022177,2]
[379665808,1755364263074,-480.0,0.00022177,2]
[379665810,1755364263083,-460.0,0.00022177,2]
[379665812,1755364263092,-480.0,0.00022177,2]
[379665814,1755364263102,-440.0,0.00022177,2]
[379665816,1755364263111,-480.0,0.00022177,2]
[379665818,1755364263121,-480.0,0.00022177,2]
[379665820,1755364263130,-480.0,0.00022177,2]
[379665822,1755364263139,-539.2099651,0.00022177,2]
[379665869,1755364263580,-20.53537395,0.00022177,2]
[379665871,1755364263590,-480.0,0.00022177,2]
[379665873,1755364263600,-480.0,0.00022177,2]
[379665875,1755364263609,-269.46463625,0.00022177,2]
[379665877,1755364263621,-170.53536375,0.00022177,2]
[379665879,1755364263630,-480.0,0.00022177,2]
[379665881,1755364263640,-480.0,0.00022177,2]
[379665883,1755364263650,-168.0,0.00022186,2]
[379665885,1755364263659,-151.0,0.0002219,7]
[379665887,1755364263668,-338.112919,0.0002219,7]
[379665889,1755364263678,-338.112919,0.0002219,7]
[379665891,1755364263687,-151.0,0.00022191,3]
[379665893,1755364263697,-500.0,0.00022191,3]
[379665895,1755364263706,-500.0,0.00022191,3]
[379665897,1755364263715,-151.0,0.00022191,3]
[379665899,1755364263724,-151.0,0.00022191,2]
[379665901,1755364263734,-151.0,0.00022191,2]
[379665903,1755364263743,-500.0,0.00022191,2]
[379665905,1755364263752,-550.24546373,0.00022191,2]
[379665907,1755364263762,-152.61271,0.00022191,2]
[379665909,1755364263772,-151.0,0.00022191,2]
[379665911,1755364263781,-153.02038073,0.00022191,3]
[379665913,1755364263791,-119.49883543,0.00022191,3]
[379665916,1755364263810,-592.59,0.00020959,2]
[379665918,1755364263820,-380.50116457,0.00022191,3]
[379665920,1755364263829,-151.0,0.00022191,2]
[379665922,1755364263838,-151.0,0.00022191,3]
[379665924,1755364263849,-500.0,0.00022191,3]
[379665926,1755364263858,-151.0,0.00022191,3]
[379665928,1755364263867,-500.0,0.00022191,3]
[379665930,1755364263877,-500.0,0.00022191,3]
[379665932,1755364263887,-291.98465364,0.00022191,3]
[379665947,1755364264027,-552.99,0.00020687,2]
[379665949,1755364264037,-552.99,0.00020961,2]
[379665951,1755364264047,-160.0,0.00021212,2]
[379665953,1755364264057,-1938.31,0.00021782,2]
[379665955,1755364264066,-1352.12657587,0.00022056,2]
[379666000,1755364264501,-160.0,0.00021212,2]
[379666002,1755364264511,-552.99,0.00021235,2]
[379666004,1755364264521,-480.0,0.00021249,2]
[379666006,1755364264531,-480.0,0.00021249,2]
[379666008,1755364264540,-552.99,0.00021509,2]
[379666010,1755364264550,-480.0,0.00021523,2]
[379666012,1755364264560,-552.99,0.00021783,2]
[379666014,1755364264570,-460.0,0.00021797,2]
[379666016,1755364264579,-586.18342413,0.00022056,2]
[379666018,1755364264589,-552.99,0.00022057,2]
[379666020,1755364264598,-208.01534636,0.00022191,3]
[379666022,1755364264607,-500.0,0.00022191,3]
[379666024,1755364264616,-151.0,0.00022191,3]
[379666026,1755364264626,-151.0,0.00022191,3]
[379666028,1755364264637,-151.0,0.00022191,7]
[379666030,1755364264646,-151.0,0.00022191,7]
[379666032,1755364264657,-151.0,0.00022191,7]
[379666034,1755364264666,-151.0,0.00022191,7]
[379666036,1755364264675,-151.0,0.00022191,7]
[379666039,1755364264686,-151.0,0.00022191,7]
[379666040,1755364264695,-190.783997,0.00022191,7]
[379666043,1755364264705,-190.783997,0.00022191,7]
[379666044,1755364264715,-190.783997,0.00022191,7]
[379666047,1755364264724,-190.783997,0.00022191,7]
[379666049,1755364264734,-190.783997,0.00022191,7]
[379666051,1755364264743,-190.783997,0.00022191,7]
[379666053,1755364264752,-151.0,0.00022191,7]
[379666054,1755364264762,-151.0,0.00022191,7]
[379666056,1755364264773,-151.0,0.00022191,7]
[379666058,1755364264782,-151.0,0.00022191,7]
[379666060,1755364264791,-151.0,0.00022191,7]
[379666062,1755364264801,-151.0,0.00022191,7]
[379666064,1755364264815,-151.0,0.00022191,7]
[379666066,1755364264825,-151.0,0.00022191,7]
[379666068,1755364264835,-151.0,0.00022191,7]
[379666070,1755364264844,-160.53639,0.00022191,7]
[379666072,1755364264853,-160.53639,0.00022191,7]
[379666074,1755364264863,-160.53639,0.00022191,7]
[379666076,1755364264873,-160.53639,0.00022191,7]
[379666078,1755364264882,-160.53639,0.00022191,7]
[379666080,1755364264891,-160.53639,0.00022191,7]
[379666082,1755364264901,-227.140785,0.00022191,7]
[379666085,1755364264912,-227.140785,0.00022191,7]
[379666087,1755364264922,-227.140785,0.00022191,7]
[379666089,1755364264932,-227.140785,0.00022191,7]
[379666091,1755364264941,-151.0,0.00022191,7]
[379666093,1755364264950,-151.0,0.00022191,7]
[379666095,1755364264959,-151.0,0.00022191,7]
[379666097,1755364264968,-151.0,0.00022191,7]
[379666099,1755364264978,-151.0,0.00022191,7]
[379666101,1755364264987,-151.0,0.00022191,7]
[379666103,1755364264996,-235.56,0.00022191,7]
[379666105,1755364265005,-151.0,0.00022191,7]
[379666106,1755364265015,-151.0,0.00022191,7]
[379666108,1755364265024,-151.0,0.00022191,7]
[379666110,1755364265033,-151.0,0.00022191,7]
[379666112,1755364265043,-151.0,0.00022191,7]
[379666114,1755364265052,-597.846685,0.00022191,7]
[379666116,1755364265062,-597.846685,0.00022191,7]
[379666119,1755364265072,-597.846685,0.00022191,7]
[379666121,1755364265082,-597.846685,0.00022191,7]
[379666123,1755364265091,-597.846685,0.00022191,7]
[379666125,1755364265100,-597.846685,0.00022191,7]
[379666127,1755364265109,-597.846685,0.00022191,7]
[379666129,1755364265119,-597.846685,0.00022191,7]
[379666131,1755364265129,-151.0,0.00022191,7]
[379666133,1755364265138,-151.0,0.00022191,7]
[379666135,1755364265147,-151.0,0.00022191,7]
[379666137,1755364265156,-151.0,0.00022191,7]
[379666152,1755364265289,-151.0,0.00022191,7]
[379666154,1755364265299,-297.527344,0.00022191,7]
[379666156,1755364265308,-151.0,0.00022191,7]
[379666158,1755364265317,-151.0,0.00022191,7]
[379666160,1755364265328,-151.0,0.00022191,7]
[379666162,1755364265337,-151.0,0.00022191,7]
[379666164,1755364265347,-152.916725,0.00022191,7]
[379666166,1755364265356,-152.916725,0.00022191,7]
[379666168,1755364265366,-152.916725,0.00022191,7]
[379666170,1755364265376,-152.916725,0.00022191,7]
[379666172,1755364265386,-152.916725,0.00022191,7]
[379666174,1755364265395,-152.916725,0.00022191,7]
[379666175,1755364265406,-151.0,0.00022191,7]
[379666177,1755364265416,-151.0,0.00022191,7]
[379666179,1755364265425,-151.0,0.00022191,7]
[379666181,1755364265434,-151.0,0.00022191,7]
[379666183,1755364265444,-154.943269,0.00022191,7]
[379666185,1755364265453,-338.112919,0.00022191,7]
[379666187,1755364265463,-338.112919,0.00022191,7]
[379666189,1755364265473,-338.112919,0.00022191,7]
[379666191,1755364265483,-338.112919,0.00022191,7]
[379666193,1755364265493,-338.112919,0.00022191,7]
[379666195,1755364265502,-338.112919,0.00022191,7]
[379666197,1755364265511,-706.528377,0.00022191,7]
[379666199,1755364265521,-322.37988151,0.00022191,7]
[379666251,1755364266024,-480.0,0.00020685,2]
[379666252,1755364266034,-480.0,0.00020685,2]
[379666253,1755364266043,-460.0,0.00020687,2]
[379666254,1755364266052,-480.0,0.00020766,2]
[379666255,1755364266061,-480.0,0.00020959,2]
[379666256,1755364266070,-314.66651881,0.00020959,2]
[379666257,1755364266079,-480.0,0.0002104,2]
[379666258,1755364266090,-480.0,0.00021233,2]
[379666259,1755364266100,-368.48907017,0.00021249,2]
[379666260,1755364266109,-480.0,0.00021249,2]
[379666261,1755364266119,-480.0,0.00021249,2]
[379666262,1755364266129,-480.0,0.00021249,2]
[379666263,1755364266139,-480.0,0.00021249,2]
[379666264,1755364266148,-480.0,0.00021314,2]
[379666266,1755364266161,-480.0,0.00021507,2]
[379666267,1755364266170,-480.0,0.00021523,2]
[379666269,1755364266180,-240.97072022,0.00021523,2]
[379666271,1755364266189,-232.85345563,0.00021588,2]
[379666273,1755364266202,-98.54654437,0.00021588,2]
[379666275,1755364266211,-480.0,0.00021781,2]
[379666277,1755364266222,-480.0,0.00021797,2]
[379666279,1755364266232,-480.0,0.00022055,2]
[379666281,1755364266242,-460.0,0.00022071,2]
[379666283,1755364266251,-384.14849549,0.00022191,7]
[379666285,1755364266261,-245.424585,0.00022191,7]
[379666287,1755364266271,-151.0,0.00022191,7]
[379666289,1755364266281,-254.557229,0.00022191,7]
[379666291,1755364266291,-184.991,0.00022191,7]
[379666293,1755364266300,-184.991,0.00022191,7]
[379666295,1755364266310,-184.991,0.00022191,7]
[379666297,1755364266319,-184.991,0.00022191,7]
[379666299,1755364266329,-184.991,0.00022191,7]
[379666301,1755364266338,-184.991,0.00022191,7]
[379666302,1755364266347,-184.991,0.00022191,7]
[379666304,1755364266356,-184.991,0.00022191,7]
[379666306,1755364266365,-151.0,0.00022191,7]
[379666308,1755364266376,-151.0,0.00022191,7]
[379666310,1755364266386,-154.823917,0.00022191,7]
[379666312,1755364266395,-151.0,0.00022191,7]
[379666314,1755364266406,-1126.608548,0.00022191,7]
[379666316,1755364266419,-151.0,0.00022191,7]
[379666318,1755364266428,-1126.608548,0.00022191,7]
[379666320,1755364266438,-151.0,0.00022191,7]
[379666322,1755364266448,-1126.608548,0.00022191,7]
[379666324,1755364266458,-151.0,0.00022191,7]
[379666326,1755364266467,-151.0,0.00022191,7]
[379666328,1755364266476,-1126.608548,0.00022191,7]
[379666330,1755364266486,-151.0,0.00022191,7]
[379666332,1755364266496,-1126.608548,0.00022191,7]
[379666334,1755364266506,-1126.608548,0.00022191,7]
[379666336,1755364266515,-151.0,0.00022191,7]
[379666338,1755364266525,-1126.608548,0.00022191,7]
[379666340,1755364266536,-1126.608548,0.00022191,7]
[379666342,1755364266545,-151.0,0.00022191,7]
[379666344,1755364266555,-216.188118,0.00022191,7]
[379666346,1755364266565,-963.298618,0.00022191,7]
[379666348,1755364266574,-963.298618,0.00022191,7]
[379666350,1755364266586,-963.298618,0.00022191,7]
[379666352,1755364266596,-963.298618,0.00022191,7]
[379666354,1755364266605,-963.298618,0.00022191,7]
[379666356,1755364266615,-963.298618,0.00022191,7]
[379666358,1755364266624,-963.298618,0.00022191,7]
[379666360,1755364266633,-963.298618,0.00022191,7]
[379666362,1755364266643,-185.17747,0.00022191,7]
[379666364,1755364266652,-185.17747,0.00022191,7]
[379666366,1755364266665,-185.17747,0.00022191,7]
[379666368,1755364266675,-185.17747,0.00022191,7]
[379666370,1755364266686,-185.17747,0.00022191,7]
[379666372,1755364266696,-185.17747,0.00022191,7]
[379666374,1755364266706,-185.17747,0.00022191,7]
[379666376,1755364266715,-185.17747,0.00022191,7]
[379666378,1755364266724,-185.17747,0.00022191,7]
[379666380,1755364266733,-185.17747,0.00022191,7]
[379666382,1755364266742,-151.0,0.00022191,7]
[379666384,1755364266752,-151.0,0.00022191,7]
[379666386,1755364266761,-151.0,0.00022191,7]
[379666388,1755364266770,-151.0,0.00022191,7]
[379666390,1755364266779,-151.0,0.00022191,7]
[379666392,1755364266788,-151.0,0.00022191,7]
[379666394,1755364266797,-151.0,0.00022191,7]
[379666396,1755364266808,-151.0,0.00022191,7]
[379666398,1755364266818,-214.053273,0.00022191,7]
[379666400,1755364266827,-166.170921,0.00022191,7]
[379666402,1755364266835,-166.170921,0.00022191,7]
[379666404,1755364266845,-166.170921,0.00022191,7]
[379666406,1755364266854,-166.170921,0.00022191,7]
[379666408,1755364266863,-166.170921,0.00022191,7]
[379666410,1755364266872,-166.170921,0.00022191,7]
[379666412,1755364266881,-166.170921,0.00022191,7]
[379666414,1755364266891,-166.170921,0.00022191,7]
[379666416,1755364266901,-151.0,0.00022191,7]
[379666418,1755364266913,-151.0,0.00022191,7]
[379666420,1755364266922,-151.0,0.00022191,7]
[379666422,1755364266932,-151.0,0.00022191,7]
[379666424,1755364266942,-227.17895,0.00022191,7]
[379666426,1755364266951,-151.0,0.00022191,7]
[379666428,1755364266960,-151.0,0.00022191,7]
[379666430,1755364266969,-151.0,0.00022191,7]
[379666432,1755364266979,-480.0,0.00022191,3]
[379666434,1755364266989,-542.5,0.00022191,3]
[379666436,1755364266998,-494.92560196,0.00022191,3]
[379666448,1755364267007,-480.0,0.00022191,3]
[379666451,1755364267120,-480.0,0.00022191,3]
[379666453,1755364267130,-480.0,0.00022191,3]
[379666455,1755364267139,-480.0,0.00022191,3]
[379666457,1755364267148,-480.0,0.00022191,3]
[379666458,1755364267159,-480.0,0.00022191,3]
[379666460,1755364267169,-151.0,0.00022191,7]
[379666462,1755364267179,-480.0,0.00022191,3]
[379666464,1755364267188,-441.60352477,0.00022191,3]
[379666466,1755364267197,-151.0,0.00022191,7]
[379666468,1755364267206,-151.0,0.00022191,7]
[379666470,1755364267216,-151.0,0.00022191,7]
[379666472,1755364267226,-258.47376,0.00022191,7]
[379666474,1755364267235,-480.0,0.00022191,3]
[379666476,1755364267244,-480.0,0.00022191,3]
[379666478,1755364267254,-480.0,0.00022191,3]
[379666480,1755364267263,-480.0,0.00022191,3]
[379666482,1755364267272,-480.0,0.00022191,3]
[379666484,1755364267282,-480.0,0.00022191,3]
[379666486,1755364267292,-196.59976084,0.00022191,3]
[379666488,1755364267302,-480.0,0.00022191,3]
[379666490,1755364267311,-480.0,0.00022191,3]
[379666492,1755364267321,-480.0,0.00022191,3]
[379666494,1755364267330,-480.0,0.00022191,3]
[379666496,1755364267339,-480.0,0.00022191,3]
[379666498,1755364267348,-480.0,0.00022191,3]
[379666500,1755364267357,-480.0,0.00022191,3]
[379666502,1755364267366,-10.75434668,0.00022191,3]
[379666504,1755364267381,-460.0,0.00022191,3]
[379666596,1755364268644,-9.24565332,0.00022191,3]
[379666598,1755364268654,-480.0,0.00022191,3]
[379666600,1755364268663,-480.0,0.00022191,3]
[379666602,1755364268672,-480.0,0.00022191,3]
[379666604,1755364268682,-196.3,0.00022191,7]
[379666606,1755364268692,-196.3,0.00022191,7]
[379666608,1755364268702,-196.3,0.00022191,7]
[379666610,1755364268711,-196.3,0.00022191,7]
[379666612,1755364268720,-196.3,0.00022191,7]
[379666614,1755364268729,-178.638599,0.00022191,7]
[379666616,1755364268738,-196.3,0.00022191,7]
[379666618,1755364268748,-480.0,0.00022191,3]
[379666620,1755364268757,-196.3,0.00022191,7]
[379666622,1755364268767,-196.3,0.00022191,7]
[379666624,1755364268776,-196.3,0.00022191,7]
[379666626,1755364268786,-480.0,0.00022191,3]
[379666628,1755364268794,-196.3,0.00022191,7]
[379666630,1755364268807,-1643.56,0.00022191,3]
[379666632,1755364268822,-480.0,0.00022191,3]
[379666634,1755364268831,-480.0,0.00022191,3]
[379666636,1755364268841,-402.25673229,0.00022191,3]
[379666638,1755364268851,-460.0,0.00022191,3]
[379666640,1755364268861,-480.0,0.00022191,3]
[379666642,1755364268871,-480.0,0.00022191,3]
[379666644,1755364268880,-480.0,0.00022191,3]
[379666655,1755364268889,-480.0,0.00022191,3]
[379666657,1755364268989,-151.0,0.00022191,7]
[379666659,1755364268999,-151.0,0.00022191,7]
[379666661,1755364269009,-151.0,0.00022191,7]
[379666663,1755364269019,-151.0,0.00022191,7]
[379666665,1755364269029,-480.0,0.00022191,3]
[379666667,1755364269038,-480.0,0.00022191,3]
[379666669,1755364269047,-168.562499,0.00022191,7]
[379666671,1755364269057,-42.29693959,0.00022191,7]
[379666674,1755364269074,-126.26555941,0.00022191,7]
[379666676,1755364269083,-419.9436544,0.00022191,3]
[379666677,1755364269093,-168.562499,0.00022191,7]
[379666679,1755364269102,-168.562499,0.00022191,7]
[379666681,1755364269111,-168.562499,0.00022191,7]
[379666683,1755364269124,-168.562499,0.00022191,7]
[379666686,1755364269139,-350.89702972,0.00022191,3]
[379666687,1755364269160,-219.84537016,0.00022191,3]
[379666689,1755364269171,-260.15462984,0.00022191,3]
[379666691,1755364269180,-480.0,0.00022191,3]
[379666693,1755364269189,-480.0,0.00022191,3]
[379666695,1755364269198,-480.0,0.00022191,3]
[379666697,1755364269207,-446.23874385,0.00022191,3]
[379668060,1755364283229,7731.97351763,0.00020586,2]
[379668063,1755364283253,10000.0,0.00020586,2]
[379668067,1755364283275,10000.0,0.00020586,2]
[379668070,1755364283299,10000.0,0.00020586,2]
[379668073,1755364283322,10000.0,0.00020586,2]
[379668077,1755364283346,167.69763581,0.00020586,2]
[379669848,1755364301936,1200.0,0.00020684,2]
[379672209,1755364326897,205.0989998,0.0002787,120]
[379673932,1755364347016,500.0,0.00019999,2]
[379677000,1755364383070,300.0,0.00020684,2]
[379678231,1755364395757,-480.0,0.00020685,2]
[379678235,1755364395786,-480.0,0.00020685,2]
[379678238,1755364395815,-599.73,0.00020685,2]
[379678242,1755364395844,-460.0,0.00020685,2]
[379678246,1755364395875,-480.0,0.00020685,2]
[379678265,1755364396059,-432.22338106,0.00020685,2]
[379678269,1755364396089,-480.0,0.00020685,2]
[379678272,1755364396117,-726.78,0.00020685,2]
[379678273,1755364396145,-532.2882024,0.00020685,2]
[379678274,1755364396172,-196.09220641,0.00020685,2]
[379678293,1755364396476,-265.23242026,0.00020685,2]
[379678297,1755364396504,-480.0,0.00020685,2]
[379678301,1755364396532,-480.0,0.00020685,2]
[379678305,1755364396559,-527.80176785,0.00020685,2]
[379678309,1755364396587,-260.08162378,0.00020685,2]
[379678317,1755364396654,-973.76837622,0.00020685,2]
[379678321,1755364396682,-480.0,0.00020685,2]
[379678325,1755364396709,-500.0,0.00020685,2]
[379678329,1755364396736,-500.0,0.00020685,2]
[379678340,1755364396836,-480.0,0.00020685,2]
[379678344,1755364396866,-480.0,0.00020685,2]
[379678348,1755364396895,-480.0,0.00020685,2]
[379678352,1755364396923,-480.0,0.00020685,2]
[379678356,1755364396952,-276.93,0.00020685,2]
[379678378,1755364397153,-606.14,0.00020685,2]
[379678382,1755364397181,-480.0,0.00020685,2]
[379678385,1755364397208,-480.0,0.00020685,2]
[379678403,1755364397364,-2271.65,0.00020685,2]
[379678433,1755364397495,-456.7,0.00020685,2]
[379678437,1755364397670,-127.76,0.00020685,2]
[379678451,1755364397795,-1168.92,0.00020685,2]
[379678461,1755364397877,-2337.84,0.00020685,2]
[379678471,1755364397968,-324.32,0.00020685,2]
[379678475,1755364397995,-480.0,0.00020685,2]
[379678479,1755364398023,-542.59,0.00020685,2]
[379678483,1755364398051,-480.0,0.00020685,2]
[379678487,1755364398079,-480.0,0.00020685,2]
[379678499,1755364398187,-480.0,0.00020685,2]
[379678503,1755364398217,-1602.06,0.00020685,2]
[379678507,1755364398246,-375.88,0.00020685,2]
[379678524,1755364398429,-84.12,0.00020685,2]
[379678525,1755364398457,-480.0,0.00020685,2]
[379678526,1755364398486,-1017.07,0.00020685,2]
[379678527,1755364398624,-2394.14,0.00020685,2]
[379678529,1755364398777,-1892.25,0.00020685,2]
[379678540,1755364398887,-1215.5,0.00020685,2]
[379678544,1755364398917,-480.0,0.00020685,2]
[379678548,1755364398946,-266.86,0.00020685,2]
[379678576,1755364399211,-1075.28,0.00020685,2]
[379678579,1755364399239,-441.95055698,0.00020685,2]
[379678583,1755364399270,-480.0,0.00020685,2]
[379678597,1755364399397,-1144.58,0.00020685,2]
[379678601,1755364399425,-1321.74,0.00020685,2]
[379678623,1755364399627,-480.0,0.00020685,2]
[379678663,1755364400014,460.0,0.00020685,2]
[379678783,1755364401329,480.0,0.00020685,2]
[379678844,1755364401926,3100.0,0.00020685,2]
[379678848,1755364401949,1771.84,0.00020685,2]
[379678874,1755364402193,480.0,0.00020685,2]
[379679227,1755364405735,500.0,0.00020684,2]
[379679392,1755364407397,592.58,0.00020685,2]
[379679438,1755364408107,480.0,0.00020685,2]
[379679592,1755364409666,440.0,0.00020684,2]
[379679858,1755364412422,480.0,0.00020685,2]
[379679955,1755364413357,255.58,0.00020685,2]
[379679959,1755364413379,204.42,0.00020685,2]
[379679982,1755364414555,480.0,0.00020685,2]
[379680048,1755364418032,480.0,0.00020684,2]
[379680071,1755364420622,262.38,0.00020685,2]
[379680072,1755364420968,480.0,0.00020685,2]
[379680073,1755364423259,387.25977469,0.00020685,2]
[379680074,1755364424034,213.43437472,0.00020685,2]
[379680075,1755364424978,1386.91,0.00020685,2]
[379680076,1755364426945,480.0,0.00020685,2]
[379680077,1755364431880,491.18,0.00020685,2]
[379680078,1755364433835,134.41585059,0.00020685,2]
[379680079,1755364433857,345.58414941,0.00020685,2]
[379680081,1755364435112,549.83,0.00020685,2]
[379680082,1755364435497,625.24247739,0.00020586,3]
[379680083,1755364439991,440.0,0.00020685,2]
[379680084,1755364442438,480.0,0.00020685,2]
[379680085,1755364442867,300.0,0.00020685,2]
[379680086,1755364444617,1702.02,0.00020685,2]
[379680087,1755364446589,448.27380012,0.00020685,2]
[379680088,1755364447753,109.04957308,0.00020586,2]
[379680089,1755364447774,5000.0,0.00020586,2]
[379680090,1755364447796,5000.0,0.00020586,2]
[379680091,1755364447818,5000.0,0.00020586,2]
[379680092,1755364447839,5000.0,0.00020586,2]
[379680093,1755364447860,5000.0,0.00020586,2]
[379680094,1755364447888,5000.0,0.00020586,2]
[379680095,1755364447910,5000.0,0.00020586,2]
[379680096,1755364447931,5000.0,0.00020586,2]
[379680097,1755364447951,5000.0,0.00020586,2]
[379680098,1755364447972,5000.0,0.00020586,2]
[379680130,1755364592470,500.0,0.00019999,2]
[379680171,1755364717240,471.795333,0.00019683,2]
[379680213,1755364934118,237.449735,0.00019967,2]
[379680229,1755365059908,333.198687,0.00013699,2]